bitfinex/quotes_SOLUSD_20241125
["timestamp","ask_amount","ask_price","bid_price","bid_amount"]
[1732535602240,3.9729,251.7,251.61,7.85955122]
[1732535602537,3.9729,251.7,251.62,7.85955122]
[1732535603435,3.9729,251.7,251.61,7.85955122]
[1732535605314,3.9729,251.7,251.63,7.85955122]
[1732535606231,3.9724,251.74,251.67,7.85955122]
[1732535607838,44.6034,251.75,251.69,7.85955122]
[1732535608140,3.9714,251.8,251.71,7.85955122]
[1732535609640,3.9714,251.8,251.67,1.9866]
[1732535609831,3.9714,251.8,251.7,7.85955122]
[1732535611318,23.776884,251.79,251.6,12.6273]
[1732535611519,23.776884,251.79,251.61,23.776884]
[1732535611725,23.776884,251.79,251.66,7.85955122]
[1732535612141,23.776884,251.79,251.68,7.85955122]
[1732535612529,3.9717,251.78,251.68,7.85955122]
[1732535614248,3.9717,251.78,251.63,20.0]
[1732535614438,13.901,251.78,251.66,7.85955122]
[1732535614937,13.901,251.78,251.69,7.85955122]
[1732535615650,13.901,251.78,251.68,7.85955122]
[1732535616022,9.9293,251.78,251.68,7.85955122]
[1732535616540,9.9293,251.78,251.67,7.85955122]
[1732535619855,9.9293,251.78,251.67,11.82355122]
[1732535620152,23.776884,251.79,251.67,7.85955122]
[1732535620339,3.9714,251.8,251.7,7.85955122]
[1732535622450,3.9714,251.8,251.71,7.85955122]
[1732535622830,3.9714,251.8,251.72,7.85955122]
[1732535623650,43.544,251.81,251.65,2.7816]
[1732535623651,43.544,251.81,251.76,7.85955122]
[1732535623822,43.544,251.81,251.66,0.59580307]
[1732535624130,3.9704,251.86,251.8,7.85955122]
[1732535624527,3.9704,251.86,251.79,7.85955122]
[1732535624954,3.9704,251.86,251.8,7.85955122]
[1732535625556,3.9704,251.86,251.81,7.85955122]
[1732535626232,3.9703,251.87,251.82,7.85955122]
[1732535626446,3.9695,251.92,251.84,7.85955122]
[1732535626830,3.9695,251.92,251.83,7.85955122]
[1732535627253,3.9695,251.92,251.82,7.85955122]
[1732535628638,3.9695,251.92,251.84,7.85955122]
[1732535628849,20.0,251.9,251.83,7.85955122]
[1732535629326,3.9695,251.92,251.83,7.85955122]
[1732535630257,23.776884,251.91,251.77,2.7802]
[1732535630437,22.0404157,251.91,251.79,7.85955122]
[1732535630752,20.0,251.9,251.82,7.85955122]
[1732535631062,43.732,251.93,251.87,7.85955122]
[1732535631355,47.7014,251.93,251.87,7.85955122]
[1732535631542,43.732,251.93,251.9,7.85955122]
[1732535631730,3.9691,251.95,251.89,7.85955122]
[1732535632756,3.9685,251.98,251.89,7.85955122]
[1732535634759,3.9685,251.98,251.94,7.85955122]
[1732535635262,3.9685,251.98,251.91,7.85955122]
[1732535635847,3.9685,251.98,251.92,7.85955122]
[1732535637762,49.093,251.99,251.93,7.85955122]
[1732535637963,49.093,251.99,251.94,7.85955122]
[1732535638939,49.093,251.99,251.93,7.85955122]
[1732535639438,49.093,251.99,251.92,7.85955122]
[1732535640352,23.776884,251.98,251.83,2.7796]
[1732535640554,23.776884,251.98,251.84,7.85955122]
[1732535640763,23.776884,251.98,251.8,7.85955122]
[1732535641061,23.776884,251.92,251.78,7.85955122]
[1732535641242,23.776884,251.92,251.79,7.85955122]
[1732535641449,44.4482,251.93,251.81,7.85955122]
[1732535641981,3.9695,251.92,251.81,7.85955122]
[1732535642744,3.9695,251.92,251.8,7.85955122]
[1732535643861,3.9695,251.92,251.79,2.78]
[1732535643862,3.9695,251.92,251.82,7.85955122]
[1732535644248,3.9695,251.92,251.8,7.85955122]
[1732535645063,23.776884,251.91,251.77,7.85955122]
[1732535645441,13.8943,251.9,251.76,20.0]
[1732535645840,23.776884,251.89,251.76,20.0]
[1732535646046,23.776884,251.89,251.76,27.85955122]
[1732535646563,3.9701,251.88,251.76,27.85955122]
[1732535646865,3.9701,251.88,251.77,7.85955122]
[1732535647166,3.9701,251.88,251.76,27.85955122]
[1732535647457,23.776884,251.87,251.72,20.0]
[1732535647668,45.0024,251.86,251.7,7.85955122]
[1732535647855,23.776884,251.85,251.7,7.85955122]
[1732535648056,20.0,251.82,251.67,7.85955122]
[1732535648371,23.776884,251.81,251.67,7.85955122]
[1732535648557,3.9714,251.8,251.67,7.85955122]
[1732535649664,3.9714,251.8,251.67,10.64085122]
[1732535649874,3.9714,251.8,251.67,7.85955122]
[1732535650677,3.9714,251.8,251.68,7.85955122]
[1732535651180,3.9714,251.8,251.67,7.85955122]
[1732535651341,3.9714,251.8,251.68,7.85955122]
[1732535652557,3.9714,251.8,251.67,7.85955122]
[1732535653268,3.9718,251.77,251.67,7.85955122]
[1732535653768,3.9718,251.77,251.66,10.64105122]
[1732535654068,69.535684,251.76,251.62,2.7818]
[1732535654242,20.0,251.73,251.63,7.85955122]
[1732535654763,69.535684,251.76,251.64,7.85955122]
[1732535655271,20.0,251.73,251.62,7.85955122]
[1732535655646,20.0,251.72,251.58,7.85955122]
[1732535656751,3.9728,251.71,251.59,2.7823]
[1732535657071,3.9728,251.71,251.6,7.85955122]
[1732535657748,3.9728,251.71,251.62,7.85955122]
[1732535658054,69.535684,251.76,251.64,7.85955122]
[1732535658251,3.9721,251.75,251.65,7.85955122]
[1732535658472,3.9721,251.75,251.64,7.85955122]
[1732535658673,3.9721,251.75,251.63,7.85955122]
[1732535659253,3.9721,251.75,251.65,7.85955122]
[1732535660279,3.9721,251.75,251.64,7.85955122]
[1732535660475,23.776884,251.74,251.62,7.85955122]
[1732535661469,3.9721,251.75,251.66,7.85955122]
[1732535664175,3.9721,251.75,251.65,7.85955122]
[1732535669251,3.9721,251.75,251.64,2.7817]
[1732535669455,3.9721,251.75,251.67,7.85955122]
[1732535670460,3.9721,251.75,251.65,7.85955122]
[1732535670778,3.9721,251.75,251.63,2.7818]
[1732535671080,3.9721,251.75,251.65,7.85955122]
[1732535671483,3.9721,251.75,251.64,7.85955122]
[1732535672682,23.776884,251.74,251.6,2.7821]
[1732535672864,23.776884,251.74,251.61,7.85955122]
[1732535673260,9.9312,251.73,251.61,7.85955122]
[1732535673463,23.776884,251.72,251.57,7.85955122]
[1732535674174,9.9312,251.73,251.59,7.85955122]
[1732535674380,23.776884,251.72,251.55,2.7827]
[1732535674582,23.776884,251.72,251.58,7.85955122]
[1732535674782,23.776884,251.68,251.48,30.8031]
[1732535674981,23.776884,251.68,251.52,7.85955122]
[1732535675276,20.0,251.64,251.5,7.85955122]
[1732535675679,43.694,251.63,251.45,3.20333884]
[1732535675887,43.694,251.63,251.48,7.85955122]
[1732535676587,43.694,251.63,251.5,7.85955122]
[1732535676787,43.694,251.63,251.53,7.85955122]
[1732535676989,43.694,251.63,251.56,7.85955122]
[1732535677363,43.694,251.63,251.54,7.85955122]
[1732535677364,3.9742,251.62,251.54,7.85955122]
[1732535677575,3.9742,251.62,251.52,7.85955122]
[1732535678689,3.9742,251.62,251.53,7.85955122]
[1732535679188,3.9742,251.62,251.52,7.85955122]
[1732535679365,3.9742,251.62,251.47,2.7836]
[1732535679566,3.9742,251.62,251.52,7.85955122]
[1732535679767,3.9742,251.62,251.51,7.85955122]
[1732535680179,3.9742,251.62,251.47,2.7836]
[1732535680379,3.9742,251.62,251.51,7.85955122]
[1732535680781,3.9742,251.62,251.5,10.64275122]
[1732535681184,3.9742,251.62,251.5,7.85955122]
[1732535682092,3.9742,251.62,251.5,10.64275122]
[1732535682673,3.9742,251.62,251.49,7.85955122]
[1732535683073,13.9098,251.62,251.49,7.85955122]
[1732535683873,13.9098,251.62,251.49,10.64295122]
[1732535684069,3.9742,251.62,251.55,7.85955122]
[1732535684294,43.694,251.63,251.56,7.85955122]
[1732535684790,43.694,251.63,251.57,7.85955122]
[1732535684791,47.6681,251.63,251.57,7.85955122]
[1732535684974,3.9739,251.65,251.59,7.85955122]
[1732535686799,20.0,251.66,251.59,7.85955122]
[1732535687095,3.9732,251.68,251.61,7.85955122]
[1732535688770,45.0691,251.69,251.63,7.85955122]
[1732535688971,42.6647,251.75,251.65,7.85955122]
[1732535689186,3.9723,251.74,251.63,7.85955122]
[1732535689384,3.9723,251.74,251.64,7.85955122]
[1732535689689,3.9723,251.74,251.65,7.85955122]
[1732535690098,3.9723,251.74,251.64,7.85955122]
[1732535690385,20.0,251.72,251.64,7.85955122]
[1732535690770,3.9723,251.74,251.64,7.85955122]
[1732535691494,3.9723,251.74,251.65,7.85955122]
[1732535693389,3.9723,251.74,251.69,7.85955122]
[1732535693590,29.8517,251.87,251.58,14.94636214]
[1732535693591,3.9721,251.76,251.72,7.85955122]
[1732535694078,44.8586,251.81,251.72,7.85955122]
[1732535694284,3.9714,251.8,251.73,7.85955122]
[1732535695183,3.9714,251.8,251.72,7.85955122]
[1732535697101,44.8586,251.81,251.75,7.85955122]
[1732535697291,3.9712,251.82,251.77,7.85955122]
[1732535697483,30.0,251.83,251.78,7.85955122]
[1732535697985,33.9709,251.83,251.77,7.85955122]
[1732535699304,33.9709,251.83,251.74,7.85955122]
[1732535699997,33.9709,251.83,251.75,7.85955122]
[1732535700501,30.0,251.83,251.82,7.85955122]
[1732535700995,33.9709,251.83,251.8,7.85955122]
[1732535701502,33.9709,251.83,251.77,7.85955122]
[1732535701800,33.9709,251.83,251.79,7.85955122]
[1732535703681,33.9709,251.83,251.73,20.0]
[1732535703998,23.776884,251.82,251.73,20.0]
[1732535704516,35.944984,251.82,251.7,7.85955122]
[1732535704801,35.944984,251.82,251.73,20.0]
[1732535705598,23.776884,251.8,251.73,20.0]
[1732535706403,23.776884,251.8,251.72,12.28409042]
[1732535707008,23.776884,251.8,251.69,12.28409042]
[1732535707296,23.776884,251.8,251.65,15.06559042]
[1732535707812,23.776884,251.78,251.64,12.28409042]
[1732535708009,23.776884,251.78,251.65,12.28409042]
[1732535708696,23.776884,251.76,251.65,12.28409042]
[1732535708887,3.9718,251.77,251.72,12.28409042]
[1732535709201,3.9718,251.77,251.63,2.7818]
[1732535709202,3.9712,251.81,251.66,5.20796214]
[1732535709385,3.9712,251.81,251.74,12.28409042]
[1732535710294,23.776884,251.8,251.74,12.28409042]
[1732535710497,23.776884,251.8,251.73,12.28409042]
[1732535710699,23.776884,251.8,251.72,12.28409042]
[1732535710910,23.776884,251.8,251.71,12.28409042]
[1732535711084,23.776884,251.8,251.7,12.28409042]
[1732535711287,23.776884,251.8,251.69,12.28409042]
[1732535711604,23.776884,251.8,251.66,2.7814]
[1732535711605,13.8993,251.81,251.7,12.28409042]
[1732535712104,13.8993,251.81,251.71,12.28409042]
[1732535712407,3.9712,251.81,251.63,20.0]
[1732535712610,3.9712,251.81,251.75,12.28409042]
[1732535712784,3.9712,251.81,251.64,5.20796214]
[1732535712785,3.9712,251.81,251.74,12.28409042]
[1732535713101,3.9712,251.81,251.75,12.28409042]
[1732535713311,65.5233,251.83,251.76,12.28409042]
[1732535713815,65.5233,251.83,251.75,12.28409042]
[1732535714191,33.971,251.83,251.77,12.28409042]
[1732535714518,30.0,251.83,251.79,12.28409042]
[1732535714708,30.0,251.83,251.8,12.28409042]
[1732535714897,30.0,251.83,251.81,12.28409042]
[1732535715293,30.0,251.83,251.82,12.28409042]
[1732535716691,30.0,251.83,251.82,15.06379042]
[1732535723292,30.0,251.83,251.82,12.28409042]
[1732535723909,30.0,251.83,251.76,30.4698]
[1732535724104,30.0,251.83,251.78,12.28409042]
[1732535724421,33.971,251.83,251.77,12.28409042]
[1732535725126,33.971,251.83,251.7,43.0739]
[1732535725127,33.971,251.83,251.74,12.28409042]
[1732535727019,33.971,251.83,251.73,12.28409042]
[1732535727605,33.971,251.83,251.74,12.28409042]
[1732535728014,33.971,251.83,251.73,12.28409042]
[1732535729021,33.971,251.83,251.72,12.28409042]
[1732535729217,33.971,251.83,251.73,12.28409042]
[1732535730328,33.971,251.83,251.74,12.28409042]
[1732535730625,33.971,251.83,251.75,12.28409042]
[1732535730924,33.971,251.83,251.76,12.28409042]
[1732535731621,33.971,251.83,251.73,2.3834]
[1732535731802,33.971,251.83,251.71,22.7808]
[1732535732004,33.971,251.83,251.74,12.28409042]
[1732535732906,33.971,251.83,251.75,12.28409042]
[1732535733500,33.971,251.83,251.72,2.7808]
[1732535733501,33.971,251.83,251.74,12.28409042]
[1732535734925,33.971,251.83,251.75,12.28409042]
[1732535735116,33.971,251.83,251.74,12.28409042]
[1732535735718,33.971,251.83,251.73,12.28409042]
[1732535736627,33.971,251.83,251.71,12.28409042]
[1732535736931,33.971,251.83,251.74,20.0]
[1732535737737,33.971,251.83,251.72,12.28409042]
[1732535738113,33.971,251.83,251.73,12.28409042]
[1732535738314,33.971,251.83,251.74,12.28409042]
[1732535738530,30.0,251.83,251.78,12.28409042]
[1732535738740,30.0,251.83,251.79,12.28409042]
[1732535739031,30.0,251.83,251.81,12.28409042]
[1732535740620,30.0,251.83,251.8,12.28409042]
[1732535741236,30.0,251.83,251.82,12.28409042]
[1732535741437,30.0,251.83,251.81,12.28409042]
[1732535741943,30.0,251.83,251.8,12.28409042]
[1732535742831,30.0,251.83,251.79,15.06399042]
[1732535743514,30.0,251.83,251.77,12.28409042]
[1732535744538,3.9706,251.85,251.77,12.28409042]
[1732535744711,3.9706,251.85,251.78,12.28409042]
[1732535745822,43.6044,251.9,251.78,12.28409042]
[1732535746030,3.9699,251.89,251.78,12.28409042]
[1732535747060,3.9699,251.89,251.75,12.28409042]
[1732535747232,23.776884,251.88,251.77,20.0]
[1732535748337,3.9703,251.87,251.77,20.0]
[1732535748543,23.776884,251.86,251.77,20.0]
[1732535749541,3.9706,251.85,251.77,20.0]
[1732535750733,3.9706,251.85,251.76,12.28409042]
[1732535750925,3.9706,251.85,251.75,15.06459042]
[1732535752741,3.9706,251.85,251.76,12.28409042]
[1732535753044,9.9249,251.89,251.79,12.28409042]
[1732535753045,3.9699,251.89,251.79,12.28409042]
[1732535754570,3.9699,251.89,251.79,10.63709705]
[1732535755535,3.9699,251.89,251.79,7.85709705]
[1732535757048,3.9699,251.89,251.79,10.63709705]
[1732535757243,3.9699,251.89,251.8,7.85709705]
[1732535757440,3.9699,251.89,251.81,7.85709705]
[1732535760219,3.9699,251.89,251.8,7.85709705]
[1732535761639,3.9699,251.89,251.77,2.383]
[1732535761841,3.9699,251.89,251.78,7.85709705]
[1732535762926,3.9699,251.89,251.79,7.85709705]
[1732535763122,3.9699,251.89,251.81,7.85709705]
[1732535763342,3.9699,251.89,251.78,7.85709705]
[1732535763732,3.9699,251.89,251.79,7.85709705]
[1732535763932,3.9699,251.89,251.8,7.85709705]
[1732535764345,3.9699,251.89,251.81,7.85709705]
[1732535765233,3.9699,251.89,251.8,7.85709705]
[1732535765943,3.9699,251.89,251.79,7.85709705]
[1732535767349,3.9699,251.89,251.79,10.23999705]
[1732535767552,3.9699,251.89,251.8,7.85709705]
[1732535768034,3.9699,251.89,251.81,7.85709705]
[1732535768437,3.9699,251.89,251.83,7.85709705]
[1732535768636,3.9699,251.89,251.82,7.85709705]
[1732535768937,3.9699,251.89,251.81,7.85709705]
[1732535769139,3.9699,251.89,251.82,7.85709705]
[1732535769337,3.9698,251.91,251.83,7.85709705]
[1732535769864,3.9698,251.91,251.77,8.3409]
[1732535769865,3.9698,251.91,251.84,7.85709705]
[1732535770167,45.434,251.96,251.89,7.85709705]
[1732535770456,3.9684,251.99,251.9,7.85709705]
[1732535771043,9.9207,252.0,251.9,7.85709705]
[1732535771656,9.9207,252.0,251.91,7.85709705]
[1732535771856,3.968,252.01,251.91,7.85709705]
[1732535775056,3.968,252.01,251.88,2.382]
[1732535775267,3.968,252.01,251.88,7.85709705]
[1732535775442,3.968,252.01,251.89,7.85709705]
[1732535775856,13.8882,252.01,251.9,7.85709705]
[1732535776244,13.8882,252.01,251.92,7.85709705]
[1732535776439,13.8882,252.01,251.91,7.85709705]
[1732535776759,13.8882,252.01,251.9,7.85709705]
[1732535777469,13.8882,252.01,251.91,7.85709705]
[1732535777665,3.968,252.01,251.94,7.85709705]
[1732535777965,3.968,252.01,251.95,7.85709705]
[1732535778753,13.8882,252.01,251.85,20.0]
[1732535778952,13.8882,252.01,251.89,7.85709705]
[1732535779154,13.8882,252.01,251.9,7.85709705]
[1732535779466,20.0,251.98,251.9,7.85709705]
[1732535779762,13.8882,252.01,251.9,7.85709705]
[1732535780059,23.776884,252.0,251.87,7.85709705]
[1732535780733,23.776884,252.0,251.81,33.0821]
[1732535780939,20.0,251.98,251.86,7.85709705]
[1732535781151,9.921,251.99,251.88,7.85709705]
[1732535781368,9.921,251.99,251.89,7.85709705]
[1732535782359,9.921,251.99,251.85,2.3823]
[1732535782551,9.921,251.99,251.88,7.85709705]
[1732535782952,9.921,251.99,251.89,7.85709705]
[1732535783953,9.921,251.99,251.88,7.85709705]
[1732535784666,9.921,251.99,251.89,7.85709705]
[1732535784849,9.921,251.99,251.9,7.85709705]
[1732535787956,9.921,251.99,251.89,7.85709705]
[1732535789470,9.921,251.99,251.9,7.85709705]
[1732535789854,3.968,252.01,251.93,7.85709705]
[1732535790067,3.968,252.01,251.94,7.85709705]
[1732535790266,3.968,252.01,251.95,7.85709705]
[1732535790868,3.968,252.01,251.94,7.85709705]
[1732535792959,3.968,252.01,251.93,7.85709705]
[1732535793379,3.968,252.01,251.86,20.0]
[1732535793380,3.968,252.01,251.92,7.85709705]
[1732535793673,3.968,252.01,251.91,7.85709705]
[1732535793872,3.968,252.01,251.92,7.85709705]
[1732535794070,3.968,252.01,251.93,7.85709705]
[1732535794783,3.968,252.01,251.92,7.85709705]
[1732535794983,3.968,252.01,251.94,7.85709705]
[1732535795151,3.968,252.01,251.95,7.85709705]
[1732535795356,3.968,252.01,251.94,7.85709705]
[1732535796752,3.968,252.01,251.93,7.85709705]
[1732535796986,3.968,252.01,251.88,2.382]
[1732535797282,3.968,252.01,251.87,20.0]
[1732535797283,13.8882,252.01,251.87,2.3821]
[1732535797578,23.776884,252.0,251.85,7.85709705]
[1732535797784,23.776884,251.98,251.85,7.85709705]
[1732535798159,23.776884,251.98,251.83,2.3824]
[1732535798361,23.776884,251.98,251.81,33.0821]
[1732535798560,23.776884,251.98,251.83,7.85709705]
[1732535798779,23.776884,251.96,251.77,7.80524547]
[1732535798975,23.776884,251.96,251.8,7.85709705]
[1732535799183,23.776884,251.96,251.82,7.85709705]
[1732535799882,23.776884,251.94,251.82,7.85709705]
[1732535802083,3.9693,251.93,251.83,7.85709705]
[1732535802684,3.9693,251.93,251.84,7.85709705]
[1732535803479,3.9693,251.93,251.85,7.85709705]
[1732535803678,3.9688,251.96,251.88,7.85709705]
[1732535805163,3.9688,251.96,251.87,7.85709705]
[1732535806180,3.9688,251.96,251.9,7.85709705]
[1732535807571,3.9688,251.96,251.89,7.85709705]
[1732535807772,3.9688,251.96,251.88,7.85709705]
[1732535808663,3.9688,251.96,251.89,7.85709705]
[1732535809981,49.3,251.97,251.9,7.85709705]
[1732535810289,49.3,251.97,251.91,7.85709705]
[1732535810694,49.3,251.97,251.9,7.85709705]
[1732535811278,49.3,251.97,251.91,7.85709705]
[1732535811490,49.3,251.97,251.92,7.85709705]
[1732535812006,49.3,251.97,251.91,7.85709705]
[1732535812298,3.9679,252.02,251.92,7.85709705]
[1732535813003,3.9679,252.02,251.94,7.85709705]
[1732535813178,3.9679,252.02,251.95,7.85709705]
[1732535813603,3.9679,252.02,251.96,7.85709705]
[1732535814901,49.3299,252.03,251.97,7.85709705]
[1732535815280,49.3299,252.03,251.95,7.85709705]
[1732535816688,3.9678,252.03,251.95,7.85709705]
[1732535817582,27.743984,252.07,251.95,7.85709705]
[1732535818695,27.743984,252.07,251.96,7.85709705]
[1732535819797,27.743984,252.07,251.93,2.7785]
[1732535820002,27.743984,252.07,251.96,7.85709705]
[1732535820888,27.743984,252.07,251.95,7.85709705]
[1732535821089,37.661784,252.07,251.93,7.85709705]
[1732535821279,37.661784,252.07,251.9,27.85709705]
[1732535821475,23.776884,252.03,251.86,2.7793]
[1732535821696,23.776884,252.03,251.89,7.85709705]
[1732535822119,23.776884,252.01,251.89,7.85709705]
[1732535823709,44.2302,251.98,251.88,27.85709705]
[1732535823904,44.2302,251.98,251.81,5.42224547]
[1732535824094,23.776884,251.97,251.88,20.0]
[1732535824678,23.776884,251.97,251.86,7.85709705]
[1732535825096,3.9688,251.96,251.86,7.85709705]
[1732535826004,3.9688,251.96,251.88,7.85709705]
[1732535826305,3.9688,251.96,251.9,7.85709705]
[1732535827503,44.2302,251.98,251.94,7.85709705]
[1732535827714,3.9685,251.99,251.94,7.85709705]
[1732535828007,3.9685,251.99,251.85,2.7794]
[1732535828008,3.9677,252.03,251.96,7.85709705]
[1732535828692,3.9677,252.03,251.86,41.68532947]
[1732535828693,3.9677,252.03,251.97,7.85709705]
[1732535829502,23.776884,252.07,251.99,7.85709705]
[1732535830210,3.9669,252.08,251.99,7.85709705]
[1732535830888,20.0,252.06,251.98,7.85709705]
[1732535832206,3.9674,252.05,251.98,7.85709705]
[1732535833204,3.9674,252.05,251.97,7.85709705]
[1732535833713,3.9674,252.05,251.96,7.85709705]
[1732535834312,23.776884,252.07,251.97,7.85709705]
[1732535835316,3.9673,252.06,251.97,7.85709705]
[1732535837008,36.325,252.09,252.04,7.85709705]
[1732535837209,36.325,252.09,252.03,7.85709705]
[1732535837400,36.325,252.09,252.02,7.85709705]
[1732535837812,36.325,252.09,252.01,7.85709705]
[1732535839420,36.325,252.09,252.02,7.85709705]
[1732535841516,36.325,252.09,252.01,7.85709705]
[1732535842208,36.325,252.09,252.0,7.85709705]
[1732535842511,36.325,252.09,251.98,7.85709705]
[1732535843118,36.325,252.09,251.99,7.85709705]
[1732535843294,36.325,252.09,252.0,7.85709705]
[1732535843713,36.325,252.09,251.99,7.85709705]
[1732535845020,36.325,252.09,251.96,7.85709705]
[1732535845021,23.776884,252.08,251.96,7.85709705]
[1732535845193,23.776884,252.08,251.97,7.85709705]
[1732535845520,23.776884,252.08,251.98,7.85709705]
[1732535846320,23.776884,252.08,251.99,7.85709705]
[1732535846321,3.9671,252.07,251.99,7.85709705]
[1732535846502,3.9671,252.07,252.0,7.85709705]
[1732535846703,3.9671,252.07,252.02,7.85709705]
[1732535847632,36.3251,252.09,252.02,7.85709705]
[1732535847811,36.3251,252.09,252.01,7.85709705]
[1732535849319,36.3251,252.09,252.02,7.85709705]
[1732535850105,3.9669,252.09,252.03,7.85709705]
[1732535850416,3.966,252.14,252.05,7.85709705]
[1732535851016,3.966,252.14,252.04,7.85709705]
[1732535851399,13.8811,252.14,251.99,20.0]
[1732535851637,13.8811,252.14,252.01,7.85709705]
[1732535852098,13.8811,252.14,252.0,7.85709705]
[1732535852305,13.8811,252.14,252.03,7.85709705]
[1732535853732,13.8811,252.14,252.04,7.85709705]
[1732535854415,3.966,252.14,252.04,7.85709705]
[1732535854735,3.966,252.14,252.05,7.85709705]
[1732535854912,3.966,252.14,252.01,2.7775]
[1732535855224,3.966,252.14,252.05,7.85709705]
[1732535856105,3.966,252.14,252.04,7.85709705]
[1732535857028,3.966,252.14,252.03,7.85709705]
[1732535858116,3.966,252.14,252.04,7.85709705]
[1732535858437,3.966,252.14,252.0,2.7777]
[1732535858731,3.966,252.14,252.05,7.85709705]
[1732535859929,3.966,252.14,252.05,7.76909705]
[1732535861212,3.966,252.14,252.04,7.85709705]
[1732535862223,3.966,252.14,252.03,10.63449705]
[1732535863627,3.9658,252.15,252.04,7.85709705]
[1732535864014,3.9658,252.15,252.03,2.7774]
[1732535864416,3.9658,252.15,252.02,10.63459705]
[1732535866235,23.776884,252.14,252.0,2.7776]
[1732535866415,23.776884,252.14,252.03,20.0]
[1732535867118,3.9662,252.13,252.03,20.0]
[1732535871524,13.8805,252.15,252.04,2.7773]
[1732535872043,13.8805,252.15,251.99,20.0]
[1732535872351,13.8805,252.15,252.01,7.85709705]
[1732535872850,13.8805,252.15,252.05,7.85709705]
[1732535873722,3.9658,252.15,252.05,10.63419705]
[1732535874043,3.9658,252.15,252.06,7.85709705]
[1732535877025,3.9658,252.15,252.05,7.85709705]
[1732535877751,3.9658,252.15,252.07,7.85709705]
[1732535877950,3.9658,252.15,252.06,7.85709705]
[1732535878330,3.9658,252.15,252.06,10.63409705]
[1732535878749,3.9658,252.15,252.07,7.85709705]
[1732535879046,3.9658,252.15,252.06,10.63409705]
[1732535881039,3.9658,252.15,252.07,7.85709705]
[1732535882127,3.9658,252.15,252.05,7.85709705]
[1732535882328,3.9658,252.15,252.01,22.7776]
[1732535882545,3.9658,252.15,252.02,7.85709705]
[1732535883751,13.8805,252.15,252.02,10.63459705]
[1732535884342,13.8805,252.15,252.03,7.85709705]
[1732535884531,13.8805,252.15,252.04,7.85709705]
[1732535885749,13.8805,252.15,252.01,20.0]
[1732535885937,13.8805,252.15,252.02,10.63459705]
[1732535886640,13.8805,252.15,252.03,7.85709705]
[1732535887152,13.8805,252.15,252.01,20.0]
[1732535887153,31.7044,252.13,252.01,20.0]
[1732535887456,23.776884,252.12,251.97,2.7781]
[1732535887636,23.776884,252.12,251.97,10.63519705]
[1732535888346,23.776884,252.12,251.97,2.7781]
[1732535888733,23.776884,252.12,251.96,10.63529705]
[1732535889140,13.8828,252.11,251.97,7.85709705]
[1732535889339,23.776884,252.1,251.97,7.85709705]
[1732535890327,3.9668,252.09,251.97,10.63509705]
[1732535890747,3.9668,252.09,251.98,7.85709705]
[1732535890939,3.9668,252.09,251.96,7.85709705]
[1732535891137,3.9668,252.09,251.96,10.63529705]
[1732535891951,13.8838,252.09,251.96,2.7782]
[1732535892255,13.8838,252.09,251.96,10.63529705]
[1732535892836,13.8838,252.09,251.96,7.85709705]
[1732535893042,23.776884,252.06,251.92,20.0]
[1732535893238,31.8095,252.07,251.94,27.85709705]
[1732535893755,31.8095,252.07,251.94,7.85709705]
[1732535894329,3.9673,252.06,251.95,7.85709705]
[1732535894542,3.9673,252.06,251.96,7.85709705]
[1732535894741,3.9673,252.06,251.95,7.85709705]
[1732535895256,3.9673,252.06,251.96,7.85709705]
[1732535895953,3.9673,252.06,251.96,10.63519705]
[1732535896534,3.9673,252.06,251.95,7.85709705]
[1732535896841,3.9673,252.06,251.92,2.7786]
[1732535896842,3.9673,252.06,251.94,7.85709705]
[1732535897140,3.9673,252.06,251.95,7.85709705]
[1732535897465,3.9673,252.06,251.96,7.85709705]
[1732535898036,3.9673,252.06,251.95,10.63539705]
[1732535898737,3.9673,252.06,251.96,7.85709705]
[1732535899138,3.9673,252.06,251.95,10.63529705]